Workbook

Sheet 単位図法
A1: 時間 t (h) | B1: 流量 Q (m3/s) | C1: 流出係数f (-) | D1: 降雨強度R (mm/h) | F1: 時間 t (h) | G1: 基底流出量Q_base (m3/s) | H1: 直接流出量Q_direct (m3/s) | I1: 単位図成分Q_unit (m3/s) | J1: 時刻 t(h) | K1: 有効降雨強度Re(mm/h) | L1: 直接流出量Q_direct(m3/s) | M1: Re_1×u(t) | N1: Re_2×u(t) | O1: Re_3×u(t) | P1: 時刻 t(h) | Q1: 有効降雨強度Re(mm/h) | R1: 単位図成分Q_unit(m3/s) | S1: 全流出量Q(m3/s)
A2: 0 | B2: 0.8 | F2: 0 | G2: 0.8 | H2: 0 | I2: 0 | J2: 0 | L2: 0 | M2: 0 | P2: 0 | Q2: 0 | R2: 0 | S2: 0.8
A3: 2 | B3: 13 | C3: 0.4 | D3: 56.2 | F3: 2 | G3: 0.9 | H3: 12.1 | I3: 27.69 | J3: 2 | K3: 22.48 | L3: 62.25 | M3: 62.25 | N3: 0 | P3: 1 | Q3: 11.24 | R3: 13.845 | S3: 31.925
A4: 4 | B4: 43.8 | C4: 0.5 | D4: 70.5 | F4: 4 | G4: 1 | H4: 42.8 | I4: 97.93 | J4: 4 | K4: 35.25 | L4: 317.76 | M4: 220.15 | N4: 97.61 | O4: 0 | P4: 2 | Q4: 22.48 | R4: 27.69 | S4: 63.05
A5: 6 | B5: 62 | C5: 0.8 | D5: 40.4 | F5: 6 | G5: 1.1 | H5: 60.9 | I5: 139.35 | J5: 6 | K5: 32.32 | L5: 747.95 | M5: 313.26 | N5: 345.2 | O5: 89.49 | P5: 3 | Q5: 28.865 | R5: 62.81 | S5: 190.805
A6: 8 | B6: 67.5 | F6: 8 | G6: 1.2 | H6: 66.3 | I6: 151.7 | J6: 8 | L6: 1148.74 | M6: 341.02 | N6: 491.21 | O6: 316.51 | P6: 4 | Q6: 35.25 | R6: 97.93 | S6: 318.56
A7: 10 | B7: 46 | F7: 10 | G7: 1.3 | H7: 44.7 | I7: 102.28 | J7: 10 | L7: 1215.05 | M7: 229.93 | N7: 534.74 | O7: 450.38 | P7: 5 | Q7: 33.785 | R7: 118.64 | S7: 533.655
A8: 12 | B8: 33.8 | F8: 12 | G8: 1.3 | H8: 32.5 | I8: 74.36 | J8: 12 | L8: 1017.99 | M8: 167.16 | N8: 360.54 | O8: 490.29 | P8: 6 | Q8: 32.32 | R8: 139.35 | S8: 748.75
A9: 14 | B9: 22 | F9: 14 | G9: 1.4 | H9: 20.6 | I9: 47.14 | J9: 14 | L9: 698.66 | M9: 105.97 | N9: 262.12 | O9: 330.57 | P9: 7 | Q9: 0 | R9: 145.525 | S9: 949.145
A10: 16 | B10: 14.5 | F10: 16 | G10: 1.5 | H10: 13 | I10: 29.75 | J10: 16 | L10: 473.38 | M10: 66.88 | N10: 166.17 | O10: 240.33 | P10: 8 | Q10: 0 | R10: 151.7 | S10: 1149.54
A11: 18 | B11: 9.3 | F11: 18 | G11: 1.6 | H11: 7.7 | I11: 17.62 | J11: 18 | L11: 296.84 | M11: 39.61 | N11: 104.87 | O11: 152.36 | P11: 9 | Q11: 0 | R11: 126.99 | S11: 1182.695
A12: 20 | B12: 4.6 | F12: 20 | G12: 1.7 | H12: 2.9 | I12: 6.64 | J12: 20 | L12: 173.19 | M12: 14.93 | N12: 62.11 | O12: 96.15 | P12: 10 | Q12: 0 | R12: 102.28 | S12: 1215.85
A13: 22 | B13: 1.8 | F13: 22 | G13: 1.8 | H13: 0 | I13: 0 | J13: 22 | L13: 80.36 | M13: 0 | N13: 23.41 | O13: 56.95 | P13: 11 | Q13: 0 | R13: 88.32 | S13: 1117.32
J14: 24 | L14: 21.46 | N14: 0 | O14: 21.46 | P14: 12 | Q14: 0 | R14: 74.36 | S14: 1018.79
J15: 26 | L15: 0 | O15: 0 | P15: 13 | Q15: 0 | R15: 60.75 | S15: 859.125
J16: 28 | L16: 0 | P16: 14 | Q16: 0 | R16: 47.14 | S16: 699.46
P17: 15 | Q17: 0 | R17: 38.445 | S17: 586.82
P18: 16 | Q18: 0 | R18: 29.75 | S18: 474.18
P19: 17 | Q19: 0 | R19: 23.685 | S19: 385.91
P20: 18 | Q20: 0 | R20: 17.62 | S20: 297.64
P21: 19 | Q21: 0 | R21: 12.13 | S21: 235.815
P22: 20 | Q22: 0 | R22: 6.64 | S22: 173.99
P23: 21 | Q23: 0 | R23: 3.32 | S23: 127.575
P24: 22 | Q24: 0 | R24: 0 | S24: 81.16
P25: 23 | Q25: 0 | R25: 0 | S25: 51.71
P26: 24 | Q26: 0 | R26: 0 | S26: 22.26
P27: 25 | Q27: 0 | R27: 0 | S27: 11.53
P28: 26 | Q28: 0 | R28: 0 | S28: 0.8
P29: 27 | Q29: 0 | R29: 0 | S29: 0.8
P30: 28 | Q30: 0 | R30: 0 | S30: 0.8

Sheet 中安の方法
A1: 時間 T(hr) | B1: 流出係数f | C1: 降雨強度RP(mm/h) | D1: 有効降雨強度RP(mm/h) | E1: 時間 T(h) | F1: QR | G1: 単位図流量QU(m3/s) | H1: 降雨RPに対する流出量(m3/s)
A2: 0 | E2: 0 | F2: 0 | G2: 0 | H2: 0
A3: 1 | B3: 0.5 | C3: 10 | D3: 5 | E3: 1 | F3: 0.02205613483 | G3: 6.6310835 | H3: 3.31554175
A4: 2 | B4: 0.5 | C4: 10 | D4: 5 | E4: 2 | F4: 0.1164129775 | G4: 34.99906854 | H4: 20.81507602
A5: 3 | B5: 0.6 | C5: 25 | D5: 15 | E5: 3 | F5: 0.3080494369 | G5: 92.61375822 | H5: 73.75303863
A6: 4 | B6: 0.6 | C6: 25 | D6: 15 | E6: 4 | F6: 0.6144313792 | G6: 184.7261912 | H6: 201.1152028
A7: 5 | B7: 0.75 | C7: 46.5 | D7: 34.875 | E7: 5 | F7: 0.9825657966 | G7: 295.4042443 | H7: 454.6103616
A8: 6 | B8: 0.75 | C8: 46.5 | D8: 34.875 | E8: 6 | F8: 0.8240964882 | G8: 247.7611181 | H8: 832.7777607
A9: 7 | B9: 0.8 | C9: 12 | D9: 9.6 | E9: 7 | F9: 0.6911852867 | G9: 207.8019284 | H9: 1399.39275
A10: 8 | B10: 0.8 | C10: 12 | D10: 9.6 | E10: 8 | F10: 0.5797101522 | G10: 174.2874014 | H10: 2012.980728
E11: 9 | F11: 0.4862138517 | G11: 146.1781348 | H11: 2640.540546
E12: 10 | F12: 0.407796739 | G12: 122.6023621 | H12: 2868.059796
E13: 11 | F13: 0.3420268258 | G13: 102.8289163 | H13: 2643.115286
E14: 12 | F14: 0.2911777231 | G14: 87.54134894 | H14: 2352.331164
E15: 13 | F15: 0.2589618327 | G15: 77.85577796 | H15: 1975.809563
E16: 14 | F16: 0.2303103069 | G16: 69.24181812 | H16: 1663.281935
E17: 15 | F17: 0.2048287847 | G17: 61.58090642 | H17: 1407.34555
E18: 16 | F18: 0.182166537 | G18: 54.76759765 | H18: 1200.766223
E19: 17 | F19: 0.1620116394 | G19: 48.70811306 | H19: 1041.208449
E20: 18 | F20: 0.1440866788 | G20: 43.31904958 | H20: 916.2946583
E21: 19 | F21: 0.128144935 | G21: 38.52623185 | H21: 811.1617004
E22: 20 | F22: 0.113966985 | G22: 34.26369125 | H22: 721.4148057
E23: 21 | F23: 0.1013576828 | G23: 30.47275796 | H23: 641.5975034
E24: 22 | F24: 0.09014347327 | G24: 27.10125337 | H24: 570.6111839
E25: 23 | F25: 0.08252196366 | G25: 24.80987879 | H25: 507.8323412
E26: 24 | F26: 0.07557493188 | G26: 22.72128311 | H26: 452.3275309
E27: 25 | F27: 0.06921272925 | G27: 20.80851385 | H27: 403.9714335
E28: 26 | F28: 0.06338612251 | G28: 19.05676921 | H28: 361.8970751
E29: 27 | F29: 0.05805002302 | G29: 17.45249351 | H29: 326.7363914
E30: 28 | F30: 0.05316313792 | G30: 15.9832722 | H30: 297.5517855
E31: 29 | F31: 0.04868765051 | G31: 14.63773587 | H31: 271.7192519

Sheet 流出関数法
A1: 降雨データ | E1: 結果
A2: 時間T (h) | B2: 流出係数f | C2: 降雨強度R(mm/h) | E2: 時間T (h) | F2: tp (h) | G2: α | H2: Q (m3/s)
A3: 0 | B3: 0 | C3: 0 | E3: 0 | H3: 0
A4: 1 | B4: 0.5 | C4: 10 | E4: 1 | F4: 4 | G4: 0.2876820725 | H4: 20.44959644 | I4: =EXP(-G4*(E5-1))*(G4*(E5-1)+1)-EXP(-G4*E5)*(G4*E5+1) -> 0.07961922283 | J4: =0.2778*B4*C4*430*I4 -> 47.55417322 | K4: =SUM(J4:J5) -> 284.2860765
A5: 2 | B5: 0.6 | C5: 25 | E5: 2 | F5: 3 | G5: 0.4054651081 | H5: 160.479883 | I5: =EXP(-G5*(E5-1))*(G5*(E5-1)+1)-EXP(-G5*E5)*(G5*E5+1) -> 0.1321188649 | J5: =0.2778*B5*C5*430*I5 -> 236.7319033
A6: 3 | B6: 0.75 | C6: 46.5 | E6: 3 | F6: 2 | G6: 0.6931471806 | H6: 935.7282824
A7: 4 | B7: 0.8 | C7: 12 | E7: 4 | F7: 4 | G7: 0.2876820725 | H7: 1409.199441
E8: 5 | H8: 1282.561696
E9: 6 | H9: 1005.668875
C10: 流量 | E10: 7 | H10: 745.6847639
C11: 降水量 | E11: 8 | H11: 542.7206615
E12: 9 | H12: 394.7972159
E13: 10 | H13: 289.5761826
E14: 11 | H14: 214.8950082
E15: 12 | H15: 161.3886051
E16: 13 | H16: 122.4846598
E17: 14 | H17: 93.74376966
E18: 15 | H18: 72.19763693
E19: 16 | H19: 55.84771895
E20: 17 | H20: 43.32451281
E21: 18 | H21: 33.66760706
E22: 19 | H22: 26.18683771
E23: 20 | H23: 20.37493298
E24: 21 | H24: 15.85193877
E25: 22 | H25: 12.32906965
E26: 23 | H26: 9.584490173
E27: 24 | H27: 7.446550349
E28: 25 | H28: 5.781807882
E29: 26 | H29: 4.486231276

Sheet 貯留関数法_較正
A1: 入力データ | D1: 出力データ
A2: 流域面積(km2) | B2: 600 | D2: 直接流出量Qd (m3/s) | E2: 遅れがない場合の直接流出量QL (m3/s) | I2: 時刻t1～任意時刻tにおける総面積有効雨量FI | M2: 時刻t1～任意時刻tにおける流出量QLの総量QS | Q2: 任意時刻tにおける貯留量S | U2: 最適な遅れ時間に基づく貯留関数
A3: 流路延長(km) | B3: 45
A5: 時間T (h) | B5: 降水量R (mm) | C5: 全流出量Q (m3/s) | E5: TL=0 | F5: TL=1 | G5: TL=2 | H5: TL=3 | I5: TL=0 | J5: TL=1 | K5: TL=2 | L5: TL=3 | M5: TL=0 | N5: TL=1 | O5: TL=2 | P5: TL=3 | Q5: TL=0 | R5: TL=1 | S5: TL=2 | T5: TL=3 | U5: 時刻t | V5: 流出量QL(m3/s) | W5: 面積有効雨量 | X5: 時刻t1～任意時刻tにおける総面積有効雨量 | Y5: 時刻t1～任意時刻tにおける流出量QLの総量 | Z5: 任意時刻tにおける貯留量S | AA5: S=K・Q ^ p
A6: 1 | B6: 1 | C6: 122 | D6: 0 | E6: 0 | F6: 4 | G6: 9 | H6: 22 | U6: 1 | V6: 9 | W6: 79.25966851 | X6: 79.25966851 | AA6: 360.6173874
A7: 2 | B7: 8 | C7: 126 | D7: 4 | E7: 4 | F7: 9 | G7: 22 | H7: 59 | U7: 2 | V7: 22 | W7: 634.0773481 | X7: 713.3370166 | Y7: 15.5 | Z7: 697.8370166 | AA7: 651.3046144
A8: 3 | B8: 6 | C8: 131 | D8: 9 | E8: 9 | F8: 22 | G8: 59 | H8: 116 | U8: 3 | V8: 59 | W8: 475.558011 | X8: 1188.895028 | Y8: 56 | Z8: 1132.895028 | AA8: 1250.667707
A9: 4 | B9: 5 | C9: 144 | D9: 22 | E9: 22 | F9: 59 | G9: 116 | H9: 162 | U9: 4 | V9: 116 | W9: 396.2983425 | X9: 1585.19337 | Y9: 143.5 | Z9: 1441.69337 | AA9: 1955.821627
A10: 5 | B10: 3 | C10: 181 | D10: 59 | E10: 59 | F10: 116 | G10: 162 | H10: 257 | U10: 5 | V10: 162 | W10: 237.7790055 | X10: 1822.972376 | Y10: 282.5 | Z10: 1540.472376 | AA10: 2439.316423
A11: 6 | B11: 19.4 | C11: 238 | D11: 116 | E11: 116 | F11: 162 | G11: 257 | H11: 374 | I11: 1566.79116 | J11: 1554.679558 | K11: 1537.637569 | L11: 1511.163536 | M11: 87.5 | N11: 139 | O11: 209.5 | P11: 315.5 | Q11: 1479.29116 | R11: 1415.679558 | S11: 1328.137569 | T11: 1195.663536 | U11: 6 | V11: 257 | W11: 1537.637569 | X11: 3360.609945 | Y11: 492 | Z11: 2868.609945 | AA11: 3309.955545
A12: 7 | B12: 11.8 | C12: 284 | D12: 162 | E12: 162 | F12: 257 | G12: 374 | H12: 476 | I12: 2519.787845 | J12: 2500.309392 | K12: 2472.901657 | L12: 2430.324862 | M12: 226.5 | N12: 348.5 | O12: 525 | P12: 740.5 | Q12: 2293.287845 | R12: 2151.809392 | S12: 1947.901657 | T12: 1689.824862 | U12: 7 | V12: 374 | W12: 935.2640884 | X12: 4295.874033 | Y12: 807.5 | Z12: 3488.374033 | AA12: 4242.165673
A13: 8 | B13: 20.8 | C13: 379 | D13: 257 | E13: 257 | F13: 374 | G13: 476 | H13: 631 | I13: 4199.646409 | J13: 4167.18232 | K13: 4121.502762 | L13: 4050.541436 | M13: 436 | N13: 664 | O13: 950 | P13: 1294 | Q13: 3763.646409 | R13: 3503.18232 | S13: 3171.502762 | T13: 2756.541436 | U13: 8 | V13: 476 | W13: 1648.601105 | X13: 5944.475138 | Y13: 1232.5 | Z13: 4711.975138 | AA13: 4975.746789
A14: 9 | B14: 20 | C14: 496 | D14: 374 | E14: 374 | F14: 476 | G14: 631 | H14: 778 | I14: 5814.895028 | J14: 5769.944751 | K14: 5706.696133 | L14: 5608.441989 | M14: 751.5 | N14: 1089 | O14: 1503.5 | P14: 1998.5 | Q14: 5063.395028 | R14: 4680.944751 | S14: 4203.196133 | T14: 3609.941989 | U14: 9 | V14: 631 | W14: 1585.19337 | X14: 7529.668508 | Y14: 1786 | Z14: 5743.668508 | AA14: 5995.520804
A15: 10 | B15: 20 | C15: 598 | D15: 476 | E15: 476 | F15: 631 | G15: 778 | H15: 950 | I15: 7430.143646 | J15: 7372.707182 | K15: 7291.889503 | L15: 7166.342541 | M15: 1176.5 | N15: 1642.5 | O15: 2208 | P15: 2862.5 | Q15: 6253.643646 | R15: 5730.207182 | S15: 5083.889503 | T15: 4303.842541 | U15: 10 | V15: 778 | W15: 1585.19337 | X15: 9114.861878 | Y15: 2490.5 | Z15: 6624.361878 | AA15: 6886.209954
A16: 11 | B16: 20 | C16: 753 | D16: 631 | E16: 631 | F16: 778 | G16: 950 | H16: 1047 | I16: 9045.392265 | J16: 8975.469613 | K16: 8877.082873 | L16: 8724.243094 | M16: 1730 | N16: 2347 | O16: 3072 | P16: 3861 | Q16: 7315.392265 | R16: 6628.469613 | S16: 5805.082873 | T16: 4863.243094 | U16: 11 | V16: 950 | W16: 1585.19337 | X16: 10700.05525 | Y16: 3354.5 | Z16: 7345.555249 | AA16: 7858.71715
A17: 12 | B17: 28 | C17: 900 | D17: 778 | E17: 778 | F17: 950 | G17: 1047 | H17: 1130 | I17: 11306.74033 | J17: 11219.33702 | K17: 11096.35359 | L17: 10905.30387 | M17: 2434.5 | N17: 3211 | O17: 4070.5 | P17: 4949.5 | Q17: 8872.240331 | R17: 8008.337017 | S17: 7025.853591 | T17: 5955.803867 | U17: 12 | V17: 1047 | W17: 2219.270718 | X17: 12919.32597 | Y17: 4353 | Z17: 8566.325967 | AA17: 8380.645504
A18: 13 | B18: 21 | C18: 1072 | D18: 950 | E18: 950 | F18: 1047 | G18: 1130 | H18: 1096 | I18: 13002.75138 | J18: 12902.23757 | K18: 12760.80663 | L18: 12541.09945 | M18: 3298.5 | N18: 4209.5 | O18: 5159 | P18: 6062.5 | Q18: 9704.251381 | R18: 8692.737569 | S18: 7601.80663 | T18: 6478.599448 | U18: 13 | V18: 1130 | W18: 1664.453039 | X18: 14583.77901 | Y18: 5441.5 | Z18: 9142.279006 | AA18: 8814.352243
A19: 14 | B19: 20 | C19: 1169 | D19: 1047 | E19: 1047 | F19: 1130 | G19: 1096 | H19: 1006 | I19: 14618 | J19: 14505 | K19: 14346 | L19: 14099 | M19: 4297 | N19: 5298 | O19: 6272 | P19: 7113.5 | Q19: 10321 | R19: 9207 | S19: 8074 | T19: 6985.5 | U19: 14 | V19: 1096 | W19: 1585.19337 | X19: 16168.97238 | Y19: 6554.5 | Z19: 9614.472376 | AA19: 8638.039518
A20: 15 | B20: 0 | C20: 1252 | D20: 1130 | E20: 1130 | F20: 1096 | G20: 1006 | H20: 864 | I20: 14618 | J20: 14505 | K20: 14346 | L20: 14099 | M20: 5385.5 | N20: 6411 | O20: 7323 | P20: 8048.5 | Q20: 9232.5 | R20: 8094 | S20: 7023 | T20: 6050.5 | U20: 15 | V20: 1006 | W20: 0 | X20: 16168.97238 | Y20: 7605.5 | Z20: 8563.472376 | AA20: 8162.125302
A21: 16 | B21: 0 | C21: 1218 | D21: 1096 | E21: 1096 | F21: 1006 | G21: 864 | H21: 708 | I21: 14618 | J21: 14505 | K21: 14346 | L21: 14099 | M21: 6498.5 | N21: 7462 | O21: 8258 | P21: 8834.5 | Q21: 8119.5 | R21: 7043 | S21: 6088 | T21: 5264.5 | U21: 16 | V21: 864 | W21: 0 | X21: 16168.97238 | Y21: 8540.5 | Z21: 7628.472376 | AA21: 7380.67313
A22: 17 | B22: 0 | C22: 1128 | D22: 1006 | E22: 1006 | F22: 864 | G22: 708 | H22: 624 | I22: 14618 | J22: 14505 | K22: 14346 | L22: 14099 | M22: 7549.5 | N22: 8397 | O22: 9044 | P22: 9500.5 | Q22: 7068.5 | R22: 6108 | S22: 5302 | T22: 4598.5 | U22: 17 | V22: 708 | W22: 0 | X22: 16168.97238 | Y22: 9326.5 | Z22: 6842.472376 | AA22: 6469.91932
A23: 18 | B23: 0 | C23: 986 | D23: 864 | E23: 864 | F23: 708 | G23: 624 | H23: 534 | I23: 14618 | J23: 14505 | K23: 14346 | L23: 14099 | M23: 8484.5 | N23: 9183 | O23: 9710 | P23: 10079.5 | Q23: 6133.5 | R23: 5322 | S23: 4636 | T23: 4019.5 | U23: 18 | V23: 624 | W23: 0 | X23: 16168.97238 | Y23: 9992.5 | Z23: 6176.472376 | AA23: 5951.448016
A24: 19 | B24: 0 | C24: 830 | D24: 708 | E24: 708 | F24: 624 | G24: 534 | H24: 464 | I24: 14618 | J24: 14505 | K24: 14346 | L24: 14099 | M24: 9270.5 | N24: 9849 | O24: 10289 | P24: 10578.5 | Q24: 5347.5 | R24: 4656 | S24: 4057 | T24: 3520.5 | U24: 19 | V24: 534 | W24: 0 | X24: 16168.97238 | Y24: 10571.5 | Z24: 5597.472376 | AA24: 5368.886136
A25: 20 | B25: 0 | C25: 746 | D25: 624 | E25: 624 | F25: 534 | G25: 464 | H25: 394 | I25: 14618 | J25: 14505 | K25: 14346 | L25: 14099 | M25: 9936.5 | N25: 10428 | O25: 10788 | P25: 11007.5 | Q25: 4681.5 | R25: 4077 | S25: 3558 | T25: 3091.5 | U25: 20 | V25: 464 | W25: 0 | X25: 16168.97238 | Y25: 11070.5 | Z25: 5098.472376 | AA25: 4892.424862
A26: 21 | B26: 0 | C26: 656 | D26: 534 | E26: 534 | F26: 464 | G26: 394 | H26: 359 | I26: 14618 | J26: 14505 | K26: 14346 | L26: 14099 | M26: 10515.5 | N26: 10927 | O26: 11217 | P26: 11384 | Q26: 4102.5 | R26: 3578 | S26: 3129 | T26: 2715 | U26: 21 | V26: 394 | W26: 0 | X26: 16168.97238 | Y26: 11499.5 | Z26: 4669.472376 | AA26: 4390.876932
A27: 22 | B27: 0 | C27: 586 | D27: 464 | E27: 464 | F27: 394 | G27: 359 | H27: 324 | I27: 14618 | J27: 14505 | K27: 14346 | L27: 14099 | M27: 11014.5 | N27: 11356 | O27: 11593.5 | P27: 11725.5 | Q27: 3603.5 | R27: 3149 | S27: 2752.5 | T27: 2373.5 | U27: 22 | V27: 359 | W27: 0 | X27: 16168.97238 | Y27: 11876 | Z27: 4292.972376 | AA27: 4128.858878
A28: 23 | B28: 0 | C28: 516 | D28: 394 | E28: 394 | F28: 359 | G28: 324 | H28: 289 | I28: 14618 | J28: 14505 | K28: 14346 | L28: 14099 | M28: 11443.5 | N28: 11732.5 | O28: 11935 | P28: 12032 | Q28: 3174.5 | R28: 2772.5 | S28: 2411 | T28: 2067 | U28: 23 | V28: 324 | W28: 0 | X28: 16168.97238 | Y28: 12217.5 | Z28: 3951.472376 | AA28: 3858.029995
A29: 24 | B29: 0 | C29: 481 | D29: 359 | E29: 359 | F29: 324 | G29: 289 | H29: 252 | I29: 14618 | J29: 14505 | K29: 14346 | L29: 14099 | M29: 11820 | N29: 12074 | O29: 12241.5 | P29: 12302.5 | Q29: 2798 | R29: 2431 | S29: 2104.5 | T29: 1796.5 | U29: 24 | V29: 289 | W29: 0 | X29: 16168.97238 | Y29: 12524 | Z29: 3644.972376 | AA29: 3577.087689
A30: 25 | B30: 0 | C30: 446 | D30: 324 | E30: 324 | F30: 289 | G30: 252 | H30: 230 | I30: 14618 | J30: 14505 | K30: 14346 | L30: 14099 | M30: 12161.5 | N30: 12380.5 | O30: 12512 | P30: 12543.5 | Q30: 2456.5 | R30: 2124.5 | S30: 1834 | T30: 1555.5 | U30: 25 | V30: 252 | W30: 0 | X30: 16168.97238 | Y30: 12794.5 | Z30: 3374.472376 | AA30: 3267.223303
A31: 26 | B31: 0 | C31: 411 | D31: 289 | E31: 289 | F31: 252 | G31: 230 | H31: 208 | I31: 14618 | J31: 14505 | K31: 14346 | L31: 14099 | M31: 12468 | N31: 12651 | O31: 12753 | P31: 12762.5 | Q31: 2150 | R31: 1854 | S31: 1593 | T31: 1336.5 | U31: 26 | V31: 230 | W31: 0 | X31: 16168.97238 | Y31: 13035.5 | Z31: 3133.472376 | AA31: 3075.670371
A32: 27 | B32: 0 | C32: 374 | D32: 252 | E32: 252 | F32: 230 | G32: 208 | H32: 185 | I32: 14618 | J32: 14505 | K32: 14346 | L32: 14099 | M32: 12738.5 | N32: 12892 | O32: 12972 | P32: 12959 | Q32: 1879.5 | R32: 1613 | S32: 1374 | T32: 1140 | U32: 27 | V32: 208 | W32: 0 | X32: 16168.97238 | Y32: 13254.5 | Z32: 2914.472376 | AA32: 2877.800185
A33: 28 | B33: 0 | C33: 352 | D33: 230 | E33: 230 | F33: 208 | G33: 185 | H33: 162 | I33: 14618 | J33: 14505 | K33: 14346 | L33: 14099 | M33: 12979.5 | N33: 13111 | O33: 13168.5 | P33: 13132.5 | Q33: 1638.5 | R33: 1394 | S33: 1177.5 | T33: 966.5 | U33: 28 | V33: 185 | W33: 0 | X33: 16168.97238 | Y33: 13451 | Z33: 2717.972376 | AA33: 2663.186413
A34: 29 | B34: 0 | C34: 330 | D34: 208 | E34: 208 | F34: 185 | G34: 162 | H34: 148 | I34: 14618 | J34: 14505 | K34: 14346 | L34: 14099 | M34: 13198.5 | N34: 13307.5 | O34: 13342 | P34: 13287.5 | Q34: 1419.5 | R34: 1197.5 | S34: 1004 | T34: 811.5 | U34: 29 | V34: 162 | W34: 0 | X34: 16168.97238 | Y34: 13624.5 | Z34: 2544.472376 | AA34: 2439.316423
A35: 30 | B35: 0 | C35: 307 | D35: 185 | E35: 185 | F35: 162 | G35: 148 | H35: 134 | I35: 14618 | J35: 14505 | K35: 14346 | L35: 14099 | M35: 13395 | N35: 13481 | O35: 13497 | P35: 13428.5 | Q35: 1223 | R35: 1024 | S35: 849 | T35: 670.5 | U35: 30 | V35: 148 | W35: 0 | X35: 16168.97238 | Y35: 13779.5 | Z35: 2389.472376 | AA35: 2297.769711
A36: 31 | B36: 0 | C36: 284 | D36: 162 | E36: 162 | F36: 148 | G36: 134 | H36: 121 | I36: 14618 | J36: 14505 | K36: 14346 | L36: 14099 | M36: 13568.5 | N36: 13636 | O36: 13638 | P36: 13556 | Q36: 1049.5 | R36: 869 | S36: 708 | T36: 543 | U36: 31 | V36: 134 | W36: 0 | X36: 16168.97238 | Y36: 13920.5 | Z36: 2248.472376 | AA36: 2151.607538
A37: 32 | B37: 0 | C37: 270 | D37: 148 | E37: 148 | F37: 134 | G37: 121 | H37: 108 | I37: 14618 | J37: 14505 | K37: 14346 | L37: 14099 | M37: 13723.5 | N37: 13777 | O37: 13765.5 | P37: 13670.5 | Q37: 894.5 | R37: 728 | S37: 580.5 | T37: 428.5 | U37: 32 | V37: 121 | W37: 0 | X37: 16168.97238 | Y37: 14048 | Z37: 2120.972376 | AA37: 2011.179085
A38: 33 | B38: 0 | C38: 256 | D38: 134 | E38: 134 | F38: 121 | G38: 108 | H38: 103 | I38: 14618 | J38: 14505 | K38: 14346 | L38: 14099 | M38: 13864.5 | N38: 13904.5 | O38: 13880 | P38: 13776 | Q38: 753.5 | R38: 600.5 | S38: 466 | T38: 323 | U38: 33 | V38: 108 | W38: 0 | X38: 16168.97238 | Y38: 14162.5 | Z38: 2006.472376 | AA38: 1865.535816
A39: 34 | B39: 0 | C39: 243 | D39: 121 | E39: 121 | F39: 108 | G39: 103 | H39: 94 | I39: 14618 | J39: 14505 | K39: 14346 | L39: 14099 | M39: 13992 | N39: 14019 | O39: 13985.5 | P39: 13874.5 | Q39: 626 | R39: 486 | S39: 360.5 | T39: 224.5 | U39: 34 | V39: 103 | W39: 0 | X39: 16168.97238 | Y39: 14268 | Z39: 1900.972376 | AA39: 1807.956256
A40: 35 | B40: 0 | C40: 230 | D40: 108 | E40: 108 | F40: 103 | G40: 94 | H40: 80 | I40: 14618 | J40: 14505 | K40: 14346 | L40: 14099 | M40: 14106.5 | N40: 14124.5 | O40: 14084 | P40: 13961.5 | Q40: 511.5 | R40: 380.5 | S40: 262 | T40: 137.5 | U40: 35 | V40: 94 | W40: 0 | X40: 16168.97238 | Y40: 14366.5 | Z40: 1802.472376 | AA40: 1701.863166
A41: 36 | B41: 0 | C41: 225 | D41: 103 | E41: 103 | F41: 94 | G41: 80 | H41: 80 | I41: 14618 | J41: 14505 | K41: 14346 | L41: 14099 | M41: 14212 | N41: 14223 | O41: 14171 | P41: 14041.5 | Q41: 406 | R41: 282 | S41: 175 | T41: 57.5 | U41: 36 | V41: 80 | W41: 0 | X41: 16168.97238 | Y41: 14453.5 | Z41: 1715.472376 | AA41: 1529.686638
A42: 37 | B42: 0 | C42: 216 | D42: 94 | E42: 94 | F42: 80 | G42: 73 | H42: 73 | I42: 14618 | J42: 14505 | K42: 14346 | L42: 14099 | M42: 14310.5 | N42: 14310 | O42: 14247.5 | P42: 14118 | Q42: 307.5 | R42: 195 | S42: 98.5 | T42: 98.5 | U42: 37 | V42: 73 | W42: 0 | X42: 16168.97238 | Y42: 14530 | Z42: 1638.972376 | AA42: 1439.796106
A43: 38 | B43: 0 | C43: 202 | D43: 80 | E43: 80 | F43: 73 | G43: 73 | H43: 73 | I43: 14618 | J43: 14505 | K43: 14346 | L43: 14099 | M43: 14397.5 | N43: 14386.5 | O43: 14320.5 | P43: 14320.5 | Q43: 220.5 | R43: 118.5 | S43: 25.5 | T43: 25.5 | U43: 38 | V43: 73 | W43: 0 | X43: 16168.97238 | Y43: 14603 | Z43: 1565.972376 | AA43: 1439.796106
A44: 39 | B44: 0 | C44: 195 | D44: 73 | E44: 73 | F44: 70 | G44: 70 | I44: 14618 | J44: 14505 | K44: 14346 | L44: 14099 | M44: 14474 | N44: 14458 | O44: 14458 | P44: 14458 | Q44: 144 | R44: 47 | S44: 47 | T44: 47 | U44: 39 | V44: 70 | W44: 0 | X44: 16168.97238 | AA44: 1400.384604
A45: 40 | B45: 0 | C45: 192 | D45: 70 | E45: 70 | F45: 70 | I45: 14618 | J45: 14505 | K45: 14346 | L45: 14099 | M45: 14545.5 | N45: 14545.5 | O45: 14545.5 | P45: 14545.5 | Q45: 72.5 | R45: 72.5 | S45: 72.5 | T45: 72.5 | U45: 40 | W45: 0 | X45: 16168.97238
A46: 41 | B46: 0 | C46: 189 | D46: 67 | E46: 67 | I46: 14618 | J46: 14505 | K46: 14346 | L46: 14099 | U46: 41 | W46: 0 | X46: 16168.97238
D48: 遅れ時間TL (h) | E48: 0 | F48: 1 | G48: 2 | H48: 3 | U48: 遅れ時間TL (h) | V48: 2
D49: ピーク流出量Q_Max (m3/s) | E49: 1130 | F49: 1130 | G49: 1130 | H49: 1130 | U49: ピーク流出量Q_Max (m3/s) | V49: 1130
D50: 遅れ時間TLがないと仮定したとき，ピーク流出量が観測される時刻TPL | E50: 15 | F50: 14 | G50: 13 | H50: 12 | U50: 遅れ時間TLがないと仮定したとき，ピーク流出量が観測される時刻TPL | V50: 13
D51: 時刻t1～t2に対するQL(t)の積分値QT | E51: 14618 | F51: 14505 | G51: 14346 | H51: 14099 | U51: 時刻t1～t2における流出量QLの総量 | V51: 14346
D52: ピーク流出係数f | E52: 0.4845745856 | F52: 0.4808287293 | G52: 0.475558011 | H52: 0.4673701657 | U52: ピーク流出係数f | V52: 0.475558011
D53: ループ曲線の上側とS=Qで囲まれる面積 | E53: 7089689.099 | F53: 5444496.837 | G53: 3872677.821 | H53: 2533869.4 | U53: 貯留関数の定数p | V53: 0.6613874466
D54: ループ曲線の下側とS=Qで囲まれる面積 | E54: -4667646.75 | F54: -4640508 | G54: -4592280.213 | H54: -4428450.831 | U54: 貯留関数の定数K | V54: 84.31845612
D55: ループ曲線で囲まれる面積 | E55: 2422042.349 | F55: 803988.837 | G55: -719602.392 | H55: -1894581.431
D56: ループ判定 | E56: clockwise | F56: clockwise | G56: counter clockwise | H56: counter clockwise

Sheet 貯留関数法_予測
A1: 入力データ | C1: 降雨イベントフラグ | E1: 出力データ
A2: 時間T (h) | B2: 降水量R (mm) | C2: 1：降雨イベント開始，2：降雨イベント終了 | E2: No. | F2: 降水量R (mm) | G2: 流出量Q (m3/s) | H2: 流出過程フラグ
A3: 1 | B3: 1.5 | C3: 1 | E3: 1 | F3: 1.5 | G3: 122 | H3: 1
A4: 2 | B4: 2 | E4: 2 | F4: 2 | G4: 122
A5: 3 | B5: 8 | E5: 3 | F5: 8 | G5: 123.663099
A6: 4 | B6: 7 | E6: 4 | F6: 7 | G6: 127.9009922
A7: 5 | B7: 5.5 | E7: 5 | F7: 5.5 | G7: 157.0568603
A8: 6 | B8: 3 | E8: 6 | F8: 3 | G8: 191.1478979
A9: 7 | B9: 19.5 | E9: 7 | F9: 19.5 | G9: 219.3520396
A10: 8 | B10: 12 | E10: 8 | F10: 12 | G10: 230.9513349
A11: 9 | B11: 25 | E11: 9 | F11: 25 | G11: 371.1664379
A12: 10 | B12: 22 | E12: 10 | F12: 22 | G12: 451.9102134
A13: 11 | B13: 24 | E13: 11 | F13: 24 | G13: 667.9338971
A14: 12 | B14: 28 | E14: 12 | F14: 28 | G14: 844.5284881
A15: 13 | B15: 35 | E15: 13 | F15: 35 | G15: 1032.845553
A16: 14 | B16: 23 | E16: 14 | F16: 23 | G16: 1256.856934
A17: 15 | B17: 15 | C17: 2 | E17: 15 | F17: 15 | G17: 1557.970213
A18: 16 | B18: 0.75 | C18: 1 | E18: 16 | F18: 0 | G18: 1632.161425
A19: 17 | B19: 1 | E19: 17 | F19: 0 | G19: 1570.491395
A20: 18 | B20: 4 | E20: 18 | F20: 0 | G20: 1302.517048
A21: 19 | B21: 3.5 | E21: 19 | F21: 0 | G21: 1097.064681
A22: 20 | B22: 2.75 | E22: 20 | F22: 0 | G22: 936.8581775
A23: 21 | B23: 1.5 | E23: 21 | F23: 0 | G23: 810.0607161
A24: 22 | B24: 9.75 | E24: 22 | F24: 0 | G24: 708.3641165
A25: 23 | B25: 6 | E25: 23 | F25: 0 | G25: 625.8441739
A26: 24 | B26: 12.5 | E26: 24 | F26: 0 | G26: 558.1733037
A27: 25 | B27: 11 | E27: 25 | F27: 0 | G27: 502.1472585
A28: 26 | B28: 12 | E28: 26 | F28: 0 | G28: 455.3585965
A29: 27 | B29: 14 | E29: 27 | F29: 0 | G29: 415.9744161
A30: 28 | B30: 17.5 | E30: 28 | F30: 0 | G30: 382.5823047
A31: 29 | B31: 11.5 | E31: 29 | F31: 0 | G31: 354.0818002
A32: 30 | B32: 7.5 | C32: 2 | E32: 30 | F32: 0 | G32: 329.6067648
A33: 31 | B33: 0 | E33: 31 | F33: 0 | G33: 308.469098
A34: 32 | B34: 0 | E34: 32 | F34: 0 | G34: 290.1174039
A35: 33 | B35: 0 | E35: 33 | F35: 0 | G35: 274.106284
A36: 34 | B36: 0 | E36: 34 | F36: 0 | G36: 260.0732746
A37: 35 | B37: 0 | E37: 35 | F37: 0 | G37: 247.7213515
A38: 36 | B38: 0 | E38: 36 | F38: 0 | G38: 236.8055331
A39: 37 | B39: 0 | E39: 37 | F39: 0 | G39: 227.1225319
A40: 38 | B40: 0 | E40: 38 | F40: 0 | G40: 218.5026943
A41: 39 | B41: 0 | E41: 39 | F41: 0 | G41: 210.8036756
A42: 40 | B42: 0 | E42: 40 | F42: 0 | G42: 203.9054396
A43: 41 | B43: 0 | E43: 41 | F43: 0 | G43: 197.7062788
E44: 42 | F44: 0 | G44: 192.1196269
E45: 43 | F45: 0 | G45: 187.0714896
E46: 44 | F46: 0 | G46: 182.4983623
E47: 45 | F47: 0 | G47: 178.3455337
E48: 46 | F48: 0 | G48: 174.5656956
E49: 47 | F49: 0 | G49: 171.1177986 | H49: 2
E50: 48 | F50: 0.75 | G50: 122 | H50: 1
E51: 49 | F51: 1 | G51: 122
E52: 50 | F52: 4 | G52: 122.5847121
E53: 51 | F53: 3.5 | G53: 124.0827582
E54: 52 | F54: 2.75 | G54: 134.4398191
E55: 53 | F55: 1.5 | G55: 146.8249563
E56: 54 | F56: 9.75 | G56: 157.4716784
E57: 55 | F57: 6 | G57: 162.4418463
E58: 56 | F58: 12.5 | G58: 214.2357054
E59: 57 | F59: 11 | G59: 246.3583911
E60: 58 | F60: 12 | G60: 329.4493767
E61: 59 | F61: 14 | G61: 401.7557701
E62: 60 | F62: 17.5 | G62: 481.4747084
E63: 61 | F63: 11.5 | G63: 577.7143886
E64: 62 | F64: 7.5 | G64: 706.7601672
E65: 63 | F65: 0 | G65: 754.3705521
E66: 64 | F66: 0 | G66: 748.7846513
E67: 65 | F67: 0 | G67: 658.7528443
E68: 66 | F68: 0 | G68: 585.2416517
E69: 67 | F69: 0 | G69: 524.6187895
E70: 68 | F70: 0 | G70: 474.171575
E71: 69 | F71: 0 | G71: 431.8459479
E72: 70 | F72: 0 | G72: 396.0669263
E73: 71 | F73: 0 | G73: 365.6129605
E74: 72 | F74: 0 | G74: 339.5266241
E75: 73 | F75: 0 | G75: 317.0502233
E76: 74 | F76: 0 | G76: 297.5787604
E77: 75 | F77: 0 | G77: 280.625156
E78: 76 | F78: 0 | G78: 265.7942479
E79: 77 | F79: 0 | G79: 252.7631474
E80: 78 | F80: 0 | G80: 241.2662559
E81: 79 | F81: 0 | G81: 231.083733
E82: 80 | F82: 0 | G82: 222.0325453
E83: 81 | F83: 0 | G83: 213.9594636
E84: 82 | F84: 0 | G84: 206.7355446
E85: 83 | F85: 0 | G85: 200.2517503
E86: 84 | F86: 0 | G86: 194.415449
E87: 85 | F87: 0 | G87: 189.1476027
E88: 86 | F88: 0 | G88: 184.3804926
E89: 87 | F89: 0 | G89: 180.05587
E90: 88 | F90: 0 | G90: 176.1234445
E91: 89 | F91: 0 | G91: 172.5396425
E92: 90 | F92: 0 | G92: 169.2665822
E93: 91 | F93: 0 | G93: 166.2712237
E94: 92 | F94: 0 | G94: 163.5246611
E95: 93 | F95: 0 | G95: 161.001531
E96: 94 | F96: 0 | G96: 158.6795155
E97: 95 | F97: 0 | G97: 156.5389233
E98: 96 | F98: 0 | G98: 154.5623357
E99: 97 | F99: 0 | G99: 152.7343062
E100: 98 | F100: 0 | G100: 151.0411043
E101: 99 | F101: 0 | G101: 149.4704969
E102: 100 | F102: 0 | G102: 148.0115612
E103: 101 | F103: 0 | G103: 146.6545235 | H103: 2

Sheet 貯留関数法_図表
A1: 入力データ
A2: 流域面積(km2) | B2: 600
A3: 流路延長(km) | B3: 45
V4: 接線
A5: 時間T (h) | B5: 降水量R (mm) | C5: 流出量Q (m3/s) | E5: 流出量Q (m3/s) | K5: QL | L5: S | M5: QL | N5: SAR | O5: SAD | R5: x | S5: f(x) | T5: f'(x) | U5: b | V5: x1 | W5: x2 | X5: x3 | Y5: y=ax1+b | Z5: y=ax2+b | AA5: y=ax3+b | AB5: y=0
A6: 1 | B6: 1 | C6: 122 | D6: 1 | E6: 122 | F6: 131 | K6: 1 | L6: 1 | M6: 1 | N6: 1 | O6: 0.9 | R6: 0 | S6: =3*R6^2-0.2 -> -0.2 | AB6: =-U6/T6 -> 
A7: 2 | B7: 8 | C7: 126 | D7: 3 | E7: 126 | F7: 144 | K7: 2 | L7: 1.2 | M7: 2 | N7: 1.2 | O7: 1 | R7: 0.1 | S7: -0.17 | AB7: =-U7/T7 ->  | AD7: 1 | AE7: 0 | AG7: 2 | AH7: 0
A8: 3 | B8: 6 | C8: 131 | D8: 5 | E8: 131 | F8: 181 | K8: 3 | L8: 1.5 | M8: 3 | N8: 1.5 | O8: 1.1 | R8: 0.2 | S8: =3*R8^2-0.2 -> -0.08 | AD8: 1 | AE8: 3 | AG8: 2 | AH8: 12
A9: 4 | B9: 5 | C9: 144 | D9: 10 | E9: 144 | F9: 238 | H9: 238 | I9: 238 | K9: 4 | L9: 1.9 | M9: 4 | N9: 1.9 | O9: 1.2 | R9: 0.3 | S9: =3*R9^2-0.2 -> 0.07
A10: 5 | B10: 3 | C10: 181 | D10: 15 | E10: 181 | F10: 284 | H10: 238 | K10: 5 | L10: 2.3 | M10: 5 | N10: 2.3 | O10: 1.334969697 | R10: 0.4 | S10: 0.28
A11: 6 | B11: 19.4 | C11: 238 | D11: 20 | E11: 238 | F11: 379 | G11: 238 | H11: 238 | K11: 6 | L11: 2.633333333 | M11: 6 | N11: 2.633333333 | O11: 1.483516414 | R11: 0.5 | S11: 0.55
A12: 7 | B12: 11.8 | C12: 284 | D12: 23 | E12: 284 | F12: 496 | K12: 7 | L12: 2.919047619 | M12: 7 | N12: 2.919047619 | O12: 1.589621212 | R12: 0.6 | S12: 1
A13: 8 | B13: 20.8 | C13: 379 | D13: 25 | E13: 379 | F13: 598 | K13: 8 | L13: 3.169047619 | M13: 8 | N13: 3.169047619 | O13: 1.680568182 | R13: 0.7 | S13: =3*R13^2 -> 1.47 | T13: =6*R13 -> 4.2 | U13: =-S13 -> -1.47 | V13: 0 | W13: =R13 -> 0.7 | X13: 5 | Y13: =$T13*$V13+$U13 -> -1.47 | Z13: =$T13*R13+$U13 -> 1.47 | AA13: =$T13*$X13+$U13 -> 19.53 | AB13: 0.35
A14: 9 | B14: 20 | C14: 496 | D14: 24 | E14: 496 | F14: 753 | K14: 9 | L14: 3.391269841 | M14: 9 | N14: 3.391269841 | O14: 1.771515152 | R14: 0.8 | S14: 1.92 | T14: 4.8 | U14: -1.92 | V14: 0 | W14: 0.8 | X14: 5 | Y14: -1.92 | Z14: 1.92 | AA14: 22.08 | AB14: 0.4
A15: 10 | B15: 20 | C15: 598 | D15: 20 | E15: 598 | F15: 900 | K15: 10 | L15: 3.591269841 | M15: 10 | N15: 3.591269841 | O15: 1.875454545 | R15: 0.9 | S15: 2.43 | T15: 5.4 | U15: -2.43 | V15: 0 | W15: 0.9 | X15: 5 | Y15: -2.43 | Z15: 2.43 | AA15: 24.57 | AB15: 0.45
A16: 11 | B16: 20 | C16: 753 | D16: 17 | E16: 753 | F16: 1072 | K16: 11 | L16: 3.773088023 | M16: 11 | N16: 3.773088023 | O16: 2.009090909 | R16: 1 | S16: 3 | T16: 6 | U16: -3 | V16: 0 | W16: =R16 -> 1 | X16: 5 | Y16: -3 | Z16: 3 | AA16: 27 | AB16: 0.5
A17: 12 | B17: 28 | C17: 900 | D17: 13 | E17: 900 | F17: 1169 | K17: 12 | L17: 3.7 | M17: 12 | N17: 3.7 | O17: 2.2 | R17: 1.1 | S17: 3.63 | T17: 6.6 | U17: -3.63 | V17: 0 | W17: 1.1 | X17: 5 | Y17: -3.63 | Z17: 3.63 | AA17: 29.37 | AB17: 0.55
A18: 13 | B18: 21 | C18: 1072 | D18: 10 | E18: 1072 | F18: 1252 | K18: 13 | L18: 3.5 | M18: 13 | N18: 3.5 | O18: 2.5 | R18: 1.2 | S18: 4.32 | T18: 7.2 | U18: -4.32 | V18: 0 | W18: 1.2 | X18: 5 | Y18: -4.32 | Z18: 4.32 | AA18: 31.68 | AB18: 0.6
A19: 14 | B19: 20 | C19: 1169 | D19: 8 | E19: 1169 | F19: 1218 | K19: 14 | L19: 3 | M19: 14 | N19: 3 | O19: 3 | R19: 1.3 | S19: 5.07 | T19: 7.8 | U19: -5.07 | V19: 0 | W19: 1.3 | X19: 5 | Y19: -5.07 | Z19: 5.07 | AA19: 33.93 | AB19: 0.65
A20: 15 | B20: 0 | C20: 1252 | D20: 5 | E20: 1252 | F20: 1128 | K20: 13 | L20: 2.5 | R20: 1.4 | S20: 5.88 | T20: 8.4 | U20: -5.88 | V20: 0 | W20: 1.4 | X20: 5 | Y20: -5.88 | Z20: 5.88 | AA20: 36.12 | AB20: 0.7
A21: 16 | B21: 0 | C21: 1218 | D21: 2 | E21: 1218 | F21: 986 | K21: 12 | L21: 2.2 | R21: 1.5 | S21: 6.75 | T21: 9 | U21: -6.75 | V21: 0 | W21: 1.5 | X21: 5 | Y21: -6.75 | Z21: 6.75 | AA21: 38.25 | AB21: 0.75
A22: 17 | B22: 0 | C22: 1128 | D22: 1 | E22: 1128 | F22: 830 | K22: 11 | L22: 2.009090909 | R22: 1.6 | S22: 7.68 | T22: 9.6 | U22: -7.68 | V22: 0 | W22: 1.6 | X22: 5 | Y22: -7.68 | Z22: 7.68 | AA22: 40.32 | AB22: 0.8
A23: 18 | B23: 0 | C23: 986 | E23: 986 | F23: 746 | K23: 10 | L23: 1.875454545 | R23: 1.7 | S23: 8.67 | T23: 10.2 | U23: -8.67 | V23: 0 | W23: 1.7 | X23: 5 | Y23: -8.67 | Z23: 8.67 | AA23: 42.33 | AB23: 0.85
A24: 19 | B24: 0 | C24: 830 | E24: 830 | F24: 656 | K24: 9 | L24: 1.771515152 | R24: 1.8 | S24: 9.72 | T24: 10.8 | U24: -9.72 | V24: 0 | W24: 1.8 | X24: 5 | Y24: -9.72 | Z24: 9.72 | AA24: 44.28 | AB24: 0.9
A25: 20 | B25: 0 | C25: 746 | E25: 746 | F25: 586 | K25: 8 | L25: 1.680568182 | R25: 1.9 | S25: 10.83 | T25: 11.4 | U25: -10.83 | V25: 0 | W25: 1.9 | X25: 5 | Y25: -10.83 | Z25: 10.83 | AA25: 46.17 | AB25: 0.95
A26: 21 | B26: 0 | C26: 656 | E26: 656 | F26: 516 | K26: 7 | L26: 1.589621212 | R26: 2 | S26: 12 | T26: 12 | U26: -12 | V26: 0 | W26: 2 | X26: 5 | Y26: -12 | Z26: 12 | AA26: 48 | AB26: =-U26/T26 -> 1
A27: 22 | B27: 0 | C27: 586 | E27: 586 | F27: 481 | K27: 6 | L27: 1.483516414 | R27: 2.1 | S27: 13.23 | T27: 12.6 | U27: -13.23 | V27: 0 | W27: 2.1 | X27: 5 | Y27: -13.23 | Z27: 13.23 | AA27: 49.77 | AB27: 1.05
A28: 23 | B28: 0 | C28: 516 | E28: 516 | F28: 446 | K28: 5 | L28: 1.334969697 | R28: 2.2 | S28: 14.52 | T28: 13.2 | U28: -14.52 | V28: 0 | W28: 2.2 | X28: 5 | Y28: -14.52 | Z28: 14.52 | AA28: 51.48 | AB28: 1.1
A29: 24 | B29: 0 | C29: 481 | E29: 481 | F29: 411 | K29: 4 | L29: 1.2 | R29: 2.3 | S29: 15.87 | T29: 13.8 | U29: -15.87 | V29: 0 | W29: 2.3 | X29: 5 | Y29: -15.87 | Z29: 15.87 | AA29: 53.13 | AB29: 1.15
A30: 25 | B30: 0 | C30: 446 | E30: 446 | F30: 374 | K30: 3 | L30: 1.1 | R30: 2.4 | S30: 17.28 | T30: 14.4 | U30: -17.28 | V30: 0 | W30: 2.4 | X30: 5 | Y30: -17.28 | Z30: 17.28 | AA30: 54.72 | AB30: 1.2
A31: 26 | B31: 0 | C31: 411 | E31: 411 | F31: 352 | K31: 2 | L31: 1 | R31: 2.5 | S31: 18.75 | T31: 15 | U31: -18.75 | V31: 0 | W31: 2.5 | X31: 5 | Y31: -18.75 | Z31: 18.75 | AA31: 56.25 | AB31: 1.25
A32: 27 | B32: 0 | C32: 374 | E32: 374 | F32: 330 | K32: 1 | L32: 0.9 | R32: 2.6 | S32: 20.28 | T32: 15.6 | U32: -20.28 | V32: 0 | W32: 2.6 | X32: 5 | Y32: -20.28 | Z32: 20.28 | AA32: 57.72 | AB32: 1.3
A33: 28 | B33: 0 | C33: 352 | E33: 352 | F33: 307 | R33: 2.7 | S33: 21.87 | T33: 16.2 | U33: -21.87 | V33: 0 | W33: 2.7 | X33: 5 | Y33: -21.87 | Z33: 21.87 | AA33: 59.13 | AB33: 1.35
A34: 29 | B34: 0 | C34: 330 | E34: 330 | F34: 284 | R34: 2.8 | S34: 23.52 | T34: 16.8 | U34: -23.52 | V34: 0 | W34: 2.8 | X34: 5 | Y34: -23.52 | Z34: 23.52 | AA34: 60.48 | AB34: 1.4
A35: 30 | B35: 0 | C35: 307 | E35: 307 | F35: 270 | R35: 2.9 | S35: 25.23 | T35: 17.4 | U35: -25.23 | V35: 0 | W35: 2.9 | X35: 5 | Y35: -25.23 | Z35: 25.23 | AA35: 61.77 | AB35: 1.45
A36: 31 | B36: 0 | C36: 284 | E36: 284 | F36: 256 | R36: 3 | S36: 27 | T36: 18 | U36: -27 | V36: 0 | W36: 3 | X36: 5 | Y36: -27 | Z36: 27 | AA36: 63 | AB36: 1.5
A37: 32 | B37: 0 | C37: 270 | E37: 270 | F37: 243 | H37: 243 | I37: 243 | R37: 3.1 | S37: 28.83 | T37: 18.6 | U37: -28.83 | V37: 0 | W37: 3.1 | X37: 5 | Y37: -28.83 | Z37: 28.83 | AA37: 64.17 | AB37: 1.55
A38: 33 | B38: 0 | C38: 256 | E38: 256 | F38: 230 | H38: 243 | R38: 3.2 | S38: 30.72 | T38: 19.2 | U38: -30.72 | V38: 0 | W38: 3.2 | X38: 5 | Y38: -30.72 | Z38: 30.72 | AA38: 65.28 | AB38: 1.6
A39: 34 | B39: 0 | C39: 243 | E39: 243 | F39: 225 | G39: 243 | H39: 243 | R39: 3.3 | S39: 32.67 | T39: 19.8 | U39: -32.67 | V39: 0 | W39: 3.3 | X39: 5 | Y39: -32.67 | Z39: 32.67 | AA39: 66.33 | AB39: 1.65
A40: 35 | B40: 0 | C40: 230 | E40: 230 | F40: 216 | R40: 3.4 | S40: 34.68 | T40: 20.4 | U40: -34.68 | V40: 0 | W40: 3.4 | X40: 5 | Y40: -34.68 | Z40: 34.68 | AA40: 67.32 | AB40: 1.7
A41: 36 | B41: 0 | C41: 225 | E41: 225 | F41: 202 | R41: 3.5 | S41: 36.75 | T41: 21 | U41: -36.75 | V41: 0 | W41: 3.5 | X41: 5 | Y41: -36.75 | Z41: 36.75 | AA41: 68.25 | AB41: 1.75
A42: 37 | B42: 0 | C42: 216 | E42: 216 | F42: 195 | R42: 3.6 | S42: 38.88 | T42: 21.6 | U42: -38.88 | V42: 0 | W42: 3.6 | X42: 5 | Y42: -38.88 | Z42: 38.88 | AA42: 69.12 | AB42: 1.8
A43: 38 | B43: 0 | C43: 202 | E43: 202 | F43: 195 | R43: 3.7 | S43: 41.07 | T43: 22.2 | U43: -41.07 | V43: 0 | W43: 3.7 | X43: 5 | Y43: -41.07 | Z43: 41.07 | AA43: 69.93 | AB43: 1.85
A44: 39 | B44: 0 | C44: 195 | E44: 195 | F44: 192 | R44: 3.8 | S44: 43.32 | T44: 22.8 | U44: -43.32 | V44: 0 | W44: 3.8 | X44: 5 | Y44: -43.32 | Z44: 43.32 | AA44: 70.68 | AB44: 1.9
A45: 40 | B45: 0 | C45: 192 | E45: 192 | R45: 3.9 | S45: 45.63 | T45: 23.4 | U45: -45.63 | V45: 0 | W45: 3.9 | X45: 5 | Y45: -45.63 | Z45: 45.63 | AA45: 71.37 | AB45: 1.95
A46: 41 | B46: 0 | C46: 189 | E46: 189
